bitfinex/quotes_ETHUSD_20251224
["timestamp","ask_amount","ask_price","bid_price","bid_amount"]
[1766610739651,0.001,2944.7,2944.5,3.43010266]
[1766610741057,0.001,2944.7,2944.5,3.43210266]
[1766610742057,0.001,2944.7,2944.5,0.03596162]
[1766610744046,0.001,2944.7,2944.5,3.43212232]
[1766610745445,0.001,2944.7,2944.5,4.20406577]
[1766610758874,0.17730737,2945.3,2944.5,4.20406577]
[1766610758875,0.001,2946.0,2944.5,17.78871509]
[1766610759036,4.81819056,2946.9,2946.3,0.08150513]
[1766610759037,1.1103,2946.8,2946.3,0.08150513]
[1766610759235,0.002,2946.9,2946.5,0.2586362]
[1766610759545,0.891,2947.1,2946.7,0.08150513]
[1766610759741,2.0013,2947.4,2946.8,0.03393511]
[1766610759942,1.1103,2947.3,2946.8,0.03393511]
[1766610760231,1.1103,2947.3,2946.9,0.1358315]
[1766610760941,0.08150513,2949.0,2946.9,0.1358315]
[1766610760942,1.1103,2948.2,2947.0,4.80665798]
[1766610761143,1.1103,2948.0,2947.3,4.80665798]
[1766610761368,1.1103,2947.9,2947.4,0.0339282]
[1766610761538,1.1103,2947.9,2947.4,1.05244656]
[1766610761734,1.1103,2947.8,2947.4,0.96257743]
[1766610761946,0.891,2947.9,2946.9,3.39338741]
[1766610761947,1.1103,2947.6,2946.9,3.39338741]
[1766610762167,1.14423427,2947.5,2947.1,1.01859444]
[1766610762335,1.14423427,2947.5,2947.2,0.03393051]
[1766610762535,1.14423427,2947.5,2947.1,1.01859444]
[1766610764067,0.001,2947.3,2947.1,1.01859444]
[1766610768070,0.001,2947.3,2947.2,0.03393051]
[1766610779784,0.001,2947.3,2946.9,3.39336733]
[1766610780078,0.001,2947.3,2947.0,1.83859697]
[1766610781783,1.1106,2947.3,2947.0,1.83859697]
[1766610782081,1.1106,2947.3,2947.0,5.23187136]
[1766610782984,0.001,2947.3,2947.0,1.83859697]
[1766610783174,0.001,2947.3,2947.1,0.03393166]
[1766610783991,0.001,2947.3,2947.1,0.56051155]
[1766610784178,0.002,2947.4,2947.1,3.95366307]
[1766610784370,0.03393427,2947.6,2947.1,3.95366307]
[1766610784892,1.1096,2947.8,2947.1,8.76032105]
[1766610785052,1.1096,2947.8,2947.1,3.91973141]
[1766610785385,1.1096,2947.8,2947.2,1.49259866]
[1766610785585,1.1096,2947.8,2947.3,0.03392935]
[1766610787579,1.1096,2947.7,2947.3,0.03392935]
[1766610787884,1.1096,2947.7,2947.2,1.01852527]
[1766610787885,1.1096,2947.7,2947.2,1.05245578]
[1766610788090,1.1096,2947.7,2947.3,0.03392935]
[1766610788469,1.1096,2947.7,2947.1,0.03393166]
[1766610791887,1.1116,2947.7,2947.1,0.03393166]
[1766610792675,1.1096,2947.6,2947.0,0.001]
[1766610793093,1.1096,2947.4,2947.0,0.001]
[1766610797764,3.39450714,2947.7,2947.0,0.001]
[1766610797765,0.002,2947.7,2947.0,3.42821411]
[1766610797969,0.002,2947.7,2947.1,0.82348721]
[1766610798168,1.1116,2947.7,2947.1,0.82348721]
[1766610801099,1.1116,2947.7,2947.1,4.2166385]
[1766610801487,1.1116,2947.7,2947.1,0.82348721]
[1766610803379,1.1116,2947.7,2947.1,4.21665236]
[1766610804801,1.1116,2947.7,2947.2,0.79841625]
[1766610806305,0.002,2947.7,2947.2,0.79841625]
[1766610806800,1.1116,2947.7,2947.2,0.03393051]
[1766610808291,1.1116,2947.7,2947.1,0.03493166]
[1766610810377,1.1116,2947.7,2947.1,0.92493166]
[1766610819013,1.1116,2947.7,2947.1,0.891]
[1766610819683,1.1405,2947.6,2947.1,0.891]
[1766610832024,0.45369171,2947.6,2947.1,0.891]
[1766610832228,1.1405,2947.5,2947.1,0.891]
[1766610838633,1.1405,2947.5,2947.1,4.28415382]
[1766610838840,1.1425,2947.7,2947.1,4.28415382]
[1766610839839,0.002,2947.8,2947.2,0.03393051]
[1766610842546,0.002,2947.7,2947.2,0.03393051]
[1766610843555,1.2228,2947.7,2947.2,0.03393051]
[1766610847455,1.2208,2947.6,2947.1,0.891]
[1766610860974,0.002,2947.7,2947.2,0.03393051]
[1766610865671,1.2228,2947.7,2947.2,0.03393051]
[1766610867387,1.2228,2947.7,2947.1,0.891]
[1766610867590,4.61529361,2947.7,2947.1,0.891]
[1766610868297,1.2208,2947.6,2947.1,0.891]
[1766610871493,1.2208,2947.6,2947.1,0.001]
[1766610871791,1.2466,2947.5,2947.1,0.001]
[1766610880289,3.39452866,2947.7,2947.1,0.03493166]
[1766610880290,1.1825,2947.7,2947.1,0.03493166]
[1766610880493,1.1825,2947.7,2947.1,0.001]
[1766610881487,1.1805,2947.6,2947.1,0.001]
[1766610892178,0.002,2947.7,2947.1,0.03493166]
[1766610892503,0.002,2947.7,2947.1,0.71719242]
[1766610892709,0.002,2947.7,2947.1,1.60719242]
[1766610893411,0.002,2947.7,2947.1,5.00033234]
[1766610896811,1.1825,2947.7,2947.1,5.00033234]
[1766610900513,1.1825,2947.7,2947.1,1.60719242]
[1766610900723,1.1825,2947.7,2947.1,0.92493166]
[1766610918656,1.1825,2947.7,2947.1,0.92493166]
[1766610922333,1.1825,2947.7,2947.1,4.31809005]
[1766610922834,1.1825,2947.7,2947.1,0.92493166]
[1766610928954,6.7833401,2948.4,2947.1,7.71125245]
[1766610929141,1.2883,2948.3,2947.6,4.80635758]
[1766610929432,1.2883,2948.3,2947.7,0.03392475]
[1766610930610,1.2883,2948.3,2947.6,0.0339259]
[1766610931438,1.2903,2948.3,2947.6,3.42647469]
[1766610931643,1.2903,2948.3,2947.6,4.19739881]
[1766610934161,1.2903,2948.3,2947.6,0.77092412]
[1766610935450,1.1906,2948.2,2947.5,0.89]
[1766610938971,1.1926,2948.2,2947.5,0.89]
[1766610943133,1.1926,2948.2,2947.6,0.0339259]
[1766610943340,1.1926,2948.2,2947.5,0.89]
[1766610943532,1.1926,2948.2,2947.5,1.65756965]
[1766610946663,1.1926,2948.2,2947.5,5.05027429]
[1766610946843,1.1926,2948.2,2947.6,0.0339259]
[1766610955073,0.002,2948.3,2947.6,3.4265111]
[1766610956773,0.002,2948.2,2947.6,3.4265111]
[1766610957073,0.002,2948.2,2947.7,0.50850807]
[1766610957244,0.002,2948.2,2947.8,0.0339236]
[1766610962173,1.2446,2948.2,2947.8,0.0339236]
[1766610962576,1.2446,2948.2,2947.6,0.0339259]
[1766610966777,1.2446,2948.2,2947.5,0.891]
[1766610966982,1.2446,2948.2,2947.5,0.92492705]
[1766610968986,1.2446,2948.2,2947.5,4.31761983]
[1766610980104,1.2446,2948.2,2947.5,8.58321678]
[1766610980293,1.2446,2948.2,2947.5,8.54928973]
[1766610980497,1.2446,2948.2,2947.6,0.0339259]
[1766610983216,0.002,2948.3,2947.6,6.81900781]
[1766610983419,1.2446,2948.6,2947.6,6.81900781]
[1766610983420,0.002,2948.6,2947.7,4.88567745]
[1766610983715,0.002,2948.6,2947.8,1.54025859]
[1766610983920,0.002,2948.6,2947.9,0.89]
[1766610984077,0.002,2948.6,2948.0,0.0339213]
[1766610984707,0.002,2948.6,2948.1,1.01823143]
[1766610985004,0.002,2948.6,2948.2,0.033919]
[1766610988216,1.2426,2948.8,2948.2,3.42577531]
[1766610988417,1.2426,2948.8,2948.3,1.01816231]
[1766610988418,0.002,2948.6,2948.3,1.01816231]
[1766610991515,1.2426,2948.8,2948.3,1.01816231]
[1766610995034,1.2446,2948.8,2948.3,1.01816231]
[1766610997232,1.2446,2948.8,2948.1,0.19421527]
[1766610997394,1.2446,2948.8,2948.1,1.21242942]
[1766610997824,3.39321613,2948.8,2948.1,1.21242942]
[1766610998025,1.1697,2948.7,2948.1,1.21242942]
[1766610998726,1.1697,2948.7,2948.1,0.03392015]
[1766610998911,1.1697,2948.7,2948.0,0.0339213]
[1766610999522,3.39134029,2948.7,2948.0,0.0339213]
[1766610999725,1.1697,2948.6,2948.0,0.0339213]
[1766611002014,1.1697,2948.6,2948.0,0.0349213]
[1766611011555,1.1697,2948.6,2948.0,3.4270238]
[1766611011851,0.002,2948.8,2948.0,9.10290912]
[1766611012055,0.002,2948.8,2948.0,12.5426232]
[1766611012235,0.002,2948.8,2948.1,1.01820033]
[1766611012438,0.002,2948.8,2948.2,0.033919]
[1766611012639,0.002,2948.8,2948.3,0.89]
[1766611012951,0.002,2948.8,2948.4,0.0339167]
[1766611016539,0.002,2948.8,2948.4,3.42556648]
[1766611016739,1.1697,2949.2,2948.4,3.42556648]
[1766611016935,0.002,2949.4,2948.6,4.80311806]
[1766611017141,0.002,2949.4,2948.9,4.80311806]
[1766611017356,0.002,2949.4,2949.0,0.03390979]
[1766611017575,0.002,2949.4,2948.8,0.03391209]
[1766611021053,1.1717,2949.4,2948.8,0.03391209]
[1766611027252,1.129,2949.3,2948.7,0.89]
[1766611027749,1.129,2949.2,2948.7,0.89]
[1766611028061,1.129,2949.1,2948.7,0.89]
[1766611028871,1.129,2949.1,2948.4,1.01808975]
[1766611029174,1.129,2949.1,2948.3,0.001]
[1766611030173,1.129,2948.9,2948.3,0.001]
[1766611030544,1.129,2948.9,2948.0,0.001]
[1766611030545,1.129,2948.5,2948.0,0.001]
[1766611031470,2.019,2948.7,2948.0,0.001]
[1766611031675,1.129,2948.6,2948.0,0.001]
[1766611039162,1.129,2948.5,2948.0,0.001]
[1766611049307,1.131,2948.5,2948.0,0.001]
[1766611049595,1.129,2948.4,2948.0,0.001]
[1766611062810,1.131,2948.4,2948.0,0.001]
[1766611068520,0.002,2948.5,2948.0,0.001]
[1766611070836,0.002,2948.4,2948.0,0.001]
[1766611077336,1.0301,2948.4,2948.0,0.001]
[1766611082635,1.22231,2948.4,2948.0,0.001]
[1766611093250,1.0782,2948.3,2948.0,0.001]
[1766611100442,1.08421,2948.4,2948.0,0.001]
[1766611100644,0.002,2948.4,2948.0,0.0349213]
[1766611101262,0.002,2948.4,2948.0,0.001]
[1766611106486,5.35914227,2949.1,2948.0,4.80474156]
[1766611106692,4.46922951,2949.0,2948.1,0.03392015]
[1766611106900,4.46922951,2949.0,2948.1,0.46562627]
[1766611109700,0.002,2948.4,2948.1,0.46562627]
[1766611111094,1.0802,2948.4,2948.0,0.001]
[1766611111693,0.9913,2948.2,2948.0,0.001]
[1766611120599,0.9913,2948.2,2947.5,0.03492705]
[1766611121111,0.9902,2948.1,2947.5,0.001]
[1766611121302,0.9902,2948.1,2947.5,0.03492705]
[1766611123902,0.9902,2948.0,2947.5,0.001]
[1766611125011,0.9902,2948.0,2947.1,0.001]
[1766611125480,0.9902,2947.8,2947.1,0.001]
[1766611125689,0.9902,2947.7,2947.1,0.001]
[1766611131608,0.9902,2947.7,2947.1,0.03493166]
[1766611131810,0.89,2947.8,2947.1,0.03493166]
[1766611131999,0.89,2947.8,2947.1,0.7171751]
[1766611134326,0.89,2947.8,2947.1,4.11032622]
[1766611136029,0.89,2947.8,2947.1,0.7171751]
[1766611136324,0.89,2947.8,2947.1,0.03493166]
[1766611136522,1.8802,2947.8,2947.1,0.03493166]
[1766611137194,0.89,2947.8,2947.1,0.03493166]
[1766611137394,0.9902,2947.7,2947.1,3.42807329]
[1766611142437,3.83025382,2948.1,2947.1,3.42807329]
[1766611142438,1.0137,2947.9,2947.1,3.42807329]
[1766611142604,1.9037,2947.9,2947.1,4.59086936]
[1766611143433,1.0157,2947.8,2947.1,4.59086936]
[1766611148842,1.0157,2947.8,2947.1,12.7896464]
[1766611148843,0.002,2947.8,2947.1,12.7896464]
[1766611149041,0.002,2947.8,2947.1,12.75571474]
[1766611149347,0.002,2947.8,2947.1,4.5569377]
[1766611149515,0.002,2947.8,2947.2,0.79511845]
[1766611149711,0.002,2947.8,2947.3,0.03392935]
[1766611150953,1.0137,2947.5,2947.0,0.001]
[1766611151122,1.0137,2947.3,2947.0,0.001]
[1766611151460,0.0339295,2947.3,2947.0,0.001]
[1766611152848,0.89,2947.6,2947.0,0.001]
[1766611153039,1.43887243,2947.6,2947.0,0.001]
[1766611153347,2.45257243,2947.6,2947.0,0.001]
[1766611155538,1.43887243,2947.6,2947.0,0.001]
[1766611155747,1.0137,2947.5,2947.0,0.001]
[1766611162763,4.40640692,2947.5,2947.0,0.001]
[1766611162947,1.59822794,2947.4,2947.0,0.001]
[1766611163358,1.0137,2947.3,2947.0,0.001]
[1766611165857,1.0157,2947.5,2947.0,0.001]
[1766611168070,4.40841325,2947.5,2947.0,0.001]
[1766611168368,1.0137,2947.4,2947.0,0.001]
[1766611169487,1.0137,2947.3,2947.0,0.001]
[1766611171685,1.0137,2947.3,2946.8,0.001]
[1766611171686,0.9898,2947.2,2946.8,0.001]
[1766611173063,0.9898,2947.0,2946.4,0.001]
[1766611173978,0.89,2947.2,2946.4,0.001]
[1766611174166,0.9898,2947.1,2946.4,0.001]
[1766611177121,0.9898,2947.1,2946.5,0.03393857]
[1766611177814,1.0295,2947.0,2946.6,0.03393741]
[1766611178002,1.0295,2947.0,2946.4,0.03493972]
[1766611178312,1.0295,2946.9,2946.4,0.001]
[1766611178672,0.53127016,2947.0,2946.3,0.001]
[1766611178673,1.0295,2946.7,2946.3,0.001]
[1766611178877,1.0295,2946.7,2946.0,0.001]
[1766611179078,1.0295,2946.5,2946.0,0.001]
[1766611185801,1.0295,2946.5,2946.0,0.03494433]
[1766611187816,1.0295,2946.5,2946.0,3.42935746]
[1766611193233,1.0295,2946.5,2946.0,6.82379058]
[1766611193437,1.0295,2946.5,2946.0,3.39541313]
[1766611193644,1.0295,2946.5,2946.0,3.42935746]
[1766611197070,1.0315,2946.5,2946.0,3.42935746]
[1766611203162,1.0315,2946.5,2946.1,0.03394317]
[1766611205761,1.0315,2946.5,2946.1,3.42817387]
[1766611211271,0.9668,2946.8,2946.1,7.50495163]
[1766611211568,0.9668,2946.8,2946.1,7.47100846]
[1766611212687,0.9668,2946.8,2946.2,0.03394202]
[1766611213592,0.002,2946.5,2946.2,3.42811565]
[1766611213864,0.002,2946.5,2946.2,4.17871393]
[1766611217869,0.9668,2946.9,2946.2,4.17871393]
[1766611218173,0.9668,2946.9,2946.2,0.03394202]
[1766611221778,0.9688,2946.9,2946.2,0.03394202]
[1766611221980,0.9688,2946.9,2946.2,3.42812727]
[1766611222479,0.9688,2946.9,2946.2,0.03394202]
[1766611222677,3.39540195,2946.9,2946.2,0.03394202]
[1766611222982,0.9668,2946.8,2946.2,0.03394202]
[1766611227485,0.9668,2946.7,2946.0,0.001]
[1766611228887,0.9668,2946.6,2946.0,0.001]
[1766611231186,0.891,2946.6,2946.0,0.001]
[1766611231390,0.9668,2946.5,2946.0,3.39543312]
[1766611233483,0.9668,2946.5,2946.0,4.07803513]
[1766611236095,0.9668,2946.5,2946.0,3.39543312]
[1766611243396,0.9668,2946.5,2946.0,0.001]
[1766611249997,0.9668,2946.5,2946.0,3.39543312]
[1766611250903,0.9668,2946.5,2946.0,0.001]
[1766611252985,0.9668,2946.5,2945.9,3.42944031]
[1766611254606,0.9668,2946.5,2946.0,0.001]
[1766611254791,0.9688,2946.5,2946.0,0.001]
[1766611255788,0.9688,2946.5,2946.0,0.03494433]
[1766611256100,0.9688,2946.5,2946.0,0.71754308]
[1766611257807,0.9688,2946.5,2946.1,3.39431791]
[1766611258011,0.9688,2946.5,2946.2,0.03394202]
[1766611259630,0.9928,2946.8,2946.3,4.80961768]
[1766611259801,0.9928,2946.8,2946.4,0.51829569]
[1766611260391,0.9928,2946.8,2946.4,0.03393972]
[1766611260778,0.9928,2946.8,2946.3,0.03394087]
[1766611261806,0.9928,2946.8,2946.3,3.42800023]
[1766611262287,0.9928,2946.8,2946.3,0.03394087]
[1766611268024,0.9928,2946.8,2946.3,3.4280068]
[1766611268227,0.9928,2946.8,2946.3,4.11023852]
[1766611268867,0.976,2947.0,2946.6,4.80961768]
[1766611269140,6.46,2947.6,2946.9,4.80961768]
[1766611269141,0.976,2947.4,2946.9,4.80961768]
[1766611269292,0.976,2947.4,2946.4,0.89]
[1766611269293,0.976,2947.4,2946.6,4.80961768]
[1766611269494,0.976,2947.4,2946.7,0.03393626]
[1766611270032,0.976,2947.4,2946.7,3.42747153]
[1766611270342,0.976,2947.4,2946.8,0.82370892]
[1766611270498,0.976,2947.4,2946.9,0.03393396]
[1766611273906,0.976,2947.4,2946.9,3.42729575]
[1766611274108,0.976,2947.4,2946.9,0.03393396]
[1766611277237,0.978,2947.4,2946.9,0.03393396]
[1766611282543,0.978,2947.4,2946.8,0.03393511]
[1766611285443,0.978,2947.4,2946.9,0.001]
[1766611294525,0.978,2947.4,2946.9,0.03493396]
[1766611294724,0.978,2947.4,2946.9,0.001]
[1766611295149,0.9116,2947.3,2946.9,0.001]
[1766611295350,0.9116,2947.2,2946.4,3.3938931]
[1766611295759,0.9116,2947.2,2946.5,0.03393857]
[1766611295927,0.9116,2947.2,2946.4,0.03393972]
[1766611296255,0.9116,2947.0,2946.4,0.03393972]
[1766611296456,0.9116,2947.0,2946.4,3.42790451]
[1766611299959,0.9116,2947.0,2946.4,6.82187681]
[1766611300260,0.9116,2947.0,2946.4,3.39396479]
[1766611300459,0.9116,2947.0,2946.4,3.42790451]
[1766611302259,0.9116,2947.0,2946.4,3.42890451]
[1766611302562,0.9136,2947.0,2946.4,3.42890451]
[1766611303162,0.9136,2947.0,2946.4,0.03493972]
[1766611303360,0.9136,2947.0,2946.4,3.42889184]
[1766611311846,0.9136,2947.0,2946.4,4.11128704]
[1766611314375,0.9136,2947.0,2946.4,7.50525934]
[1766611314554,0.9136,2947.0,2946.4,7.47131962]
[1766611314754,0.9136,2947.0,2946.5,0.03393857]
[1766611318446,0.9136,2947.0,2946.6,3.39374193]
[1766611319477,0.9136,2947.0,2946.5,3.4277392]
[1766611339392,0.9136,2947.0,2946.5,0.03393857]
[1766611340191,0.9136,2947.0,2946.5,3.42777871]
[1766611341896,0.9136,2947.0,2946.5,3.42877871]
[1766611345966,0.9136,2947.0,2946.5,0.03493857]
[1766611348616,0.9136,2947.0,2946.5,3.42879171]
[1766611349677,0.9136,2947.0,2946.5,0.03493857]
[1766611349976,0.9136,2947.0,2946.5,0.001]
[1766611350585,0.9136,2947.0,2946.5,3.39484791]
[1766611350785,0.9136,2947.0,2946.6,0.03393741]
[1766611358017,0.9136,2947.0,2946.6,3.42767452]
[1766611358782,0.9136,2947.0,2946.6,0.03393741]
[1766611362018,0.9136,2947.0,2946.6,3.42767723]
[1766611362199,0.89,2947.2,2946.6,4.11004163]
[1766611362588,0.89,2947.2,2946.6,0.71630181]
[1766611362903,0.89,2947.2,2946.6,0.03393741]
[1766611363108,0.9221,2947.2,2946.6,0.03393741]
[1766611364923,0.9221,2947.2,2946.6,3.42767072]
[1766611366418,0.9221,2947.2,2946.6,0.03393741]
[1766611366620,0.9241,2947.2,2946.6,0.03393741]
[1766611371922,0.9241,2947.2,2946.6,3.42765474]
[1766611372218,0.9241,2947.2,2946.6,4.11000411]
[1766611376014,0.9241,2947.2,2946.6,0.71628678]
[1766611377824,0.9241,2947.2,2946.6,4.11000444]
[1766611378527,0.002,2947.2,2946.6,4.11000444]
[1766611378839,0.9241,2947.2,2946.6,4.11000444]
[1766611382404,0.9241,2947.2,2946.6,3.42765507]
[1766611388442,0.9241,2947.2,2946.6,0.03393741]
[1766611392951,3.39505116,2947.2,2946.6,0.03393741]
[1766611393147,0.955,2947.1,2946.6,0.03393741]
[1766611394038,0.955,2947.1,2946.7,0.03393626]
[1766611394221,0.955,2947.1,2946.6,0.03393741]
[1766611396754,0.955,2947.1,2946.6,3.4276516]
[1766611396943,0.955,2947.1,2946.6,4.11001357]
[1766611401458,0.955,2947.1,2946.6,0.71629938]
[1766611401657,0.955,2947.1,2946.6,0.03393741]
[1766611402748,0.955,2947.1,2946.7,0.03393626]
[1766611402929,0.955,2947.1,2946.5,0.03493857]
[1766611403130,0.955,2947.1,2946.5,3.42878054]
[1766611406761,0.957,2947.1,2946.5,3.42878054]
[1766611407059,0.957,2947.1,2946.5,4.21313825]
[1766611431447,0.957,2947.1,2946.5,0.81929628]
[1766611432179,0.957,2947.1,2946.5,3.42878062]
[1766611432482,0.957,2947.1,2946.5,0.03493857]
[1766611432673,0.9271,2946.7,2946.4,0.001]
[1766611432873,0.9610295,2946.7,2946.3,0.001]
[1766611433073,0.9271,2946.5,2946.1,0.03394317]
[1766611433269,0.9271,2946.3,2946.0,0.001]
[1766611433875,1.06296702,2946.3,2946.0,0.001]
[1766611440787,0.13586702,2946.3,2946.0,0.001]
[1766611442284,1.11626702,2946.3,2946.0,0.001]
[1766611446888,0.9804,2946.3,2946.0,0.001]
[1766611457002,1.18451988,2946.3,2945.9,0.03494548]
[1766611457203,0.9804,2946.1,2945.9,0.001]
[1766611457971,0.9804,2946.1,2946.0,0.002]
[1766611464911,0.9804,2946.1,2945.9,0.001]
[1766611466511,0.9804,2946.1,2946.0,0.002]
[1766611470714,0.20511988,2946.3,2946.0,0.002]
[1766611471013,0.0339295,2946.2,2946.0,0.002]
[1766611471405,0.9465295,2946.2,2945.8,0.001]
[1766611471704,0.9465295,2946.2,2945.8,0.03494663]
[1766611473721,0.9465295,2946.2,2946.0,0.001]
[1766611474020,0.002,2946.1,2946.0,0.001]
[1766611477117,0.9146,2946.1,2946.0,0.001]
[1766611477520,0.002,2946.1,2946.0,0.001]
[1766611482327,0.9053,2947.0,2946.0,0.34415922]
[1766611482518,0.0339295,2946.9,2946.1,0.03394317]
[1766611482728,0.9053,2946.9,2946.1,0.03394317]
[1766611482893,0.0339295,2946.8,2946.1,0.03394317]
[1766611483227,0.9392295,2946.8,2946.1,0.03394317]
[1766611484128,0.9053,2946.8,2946.1,0.03394317]
[1766611484325,0.9053,2946.8,2946.2,3.3942027]
[1766611484326,0.0339295,2946.7,2946.2,3.3942027]
[1766611484622,0.0339295,2946.7,2946.3,0.03394087]
[1766611485416,0.0339295,2946.7,2946.3,3.42802726]
[1766611487428,0.9053,2946.8,2946.3,3.42802726]
[1766611489309,0.001,2946.7,2946.3,3.42802726]
[1766611497551,0.001,2946.7,2946.3,3.42902726]
[1766611499754,0.9063,2946.7,2946.3,0.001]
[1766611500155,0.9053,2946.5,2946.3,0.001]
[1766611500527,0.9053,2946.5,2946.0,3.39540926]
[1766611500753,0.9053,2946.5,2946.0,0.001]
[1766611501051,0.9053,2946.5,2946.0,3.39537301]
[1766611501553,0.9053,2946.5,2946.0,0.001]
[1766611512641,0.9063,2946.5,2946.0,0.001]
[1766611519570,0.9419,2946.3,2946.0,0.001]
[1766611525674,0.9419,2946.3,2946.0,0.03494433]
[1766611526872,0.9429,2946.5,2946.1,3.39431791]
[1766611527078,1.12639,2946.5,2946.1,3.39431791]
[1766611530180,1.12639,2946.5,2946.0,3.42931877]
[1766611537766,0.9429,2946.5,2946.0,3.42931877]
[1766611537968,0.9429,2946.5,2946.0,6.82375189]
[1766611538163,0.9429,2946.5,2946.0,6.78980756]
[1766611538364,0.9429,2946.5,2946.1,0.03394317]
[1766611541109,0.9429,2946.5,2946.1,3.42821302]
[1766611555883,1.12639,2946.5,2946.1,3.42821302]
[1766611569926,1.12639,2946.5,2946.1,0.03394317]
[1766611571332,1.12639,2946.5,2946.0,3.429361]
[1766611571333,0.9639,2946.3,2946.0,3.429361]
[1766611571641,0.9639,2946.3,2946.1,3.39430878]
[1766611572018,0.9988295,2946.5,2946.1,3.39430878]
[1766611572216,1.18791245,2946.5,2946.1,3.39430878]
[1766611576310,0.9649,2946.5,2946.1,3.39430878]
[1766611577849,0.9649,2946.5,2946.1,3.42825195]
[1766611578044,0.001,2946.5,2946.1,6.82256986]
[1766611578214,0.001,2946.7,2946.1,6.78862669]
[1766611578413,0.001,2946.7,2946.2,0.03394202]
[1766611580918,0.001,2946.7,2946.2,3.42813055]
[1766611582662,0.001,2946.7,2946.2,4.1104745]
[1766611585328,0.9978295,2947.0,2946.2,7.5046772]
[1766611585518,0.9639,2947.0,2946.2,7.47073518]
[1766611585723,0.9639,2947.0,2946.3,0.03394087]
[1766611586137,0.9639,2947.0,2946.3,3.4279464]
[1766611586339,0.9639,2947.0,2946.3,4.26749429]
[1766611587462,0.0339295,2946.9,2946.3,4.26749429]
[1766611587657,0.9639,2946.8,2946.3,0.87348876]
[1766611591974,0.002,2947.2,2946.5,4.80899936]
[1766611592131,0.002,2947.8,2947.0,4.80899936]
[1766611592330,0.972,2947.7,2947.1,0.5148316]
[1766611592527,0.972,2947.7,2947.2,3.39305103]
[1766611592840,0.972,2947.7,2947.3,0.03392935]
[1766611593530,0.972,2947.7,2947.2,0.03393051]
[1766611596334,0.972,2947.7,2947.2,3.42692311]
[1766611596535,0.972,2947.7,2947.3,0.48798231]
[1766611597050,0.972,2947.7,2947.4,0.0339282]
[1766611597857,0.002,2947.7,2947.4,0.0339282]
[1766611598251,0.9523,2948.0,2947.4,0.0339282]
[1766611598453,0.002,2948.0,2947.5,3.39270568]
[1766611598771,0.002,2948.0,2947.6,0.71586839]
[1766611599968,0.002,2948.0,2947.6,4.10843392]
[1766611600552,3.39134035,2948.7,2947.6,4.10843392]
[1766611600553,0.002,2947.7,2947.6,7.5010245]
[1766611600752,0.9503,2948.5,2947.6,6.78515611]
[1766611600967,0.9503,2948.5,2947.6,6.81908201]
[1766611601460,0.9503,2948.5,2947.6,7.76938201]
[1766611601663,0.9503,2948.5,2947.6,6.78515611]
[1766611601963,0.9503,2948.5,2947.6,4.16018114]
[1766611602154,0.9503,2948.5,2947.6,4.19410704]
[1766611605684,0.9503,2948.5,2947.6,4.16018114]
[1766611606487,0.9503,2948.4,2947.6,4.16018114]
[1766611607058,0.9503,2948.4,2947.6,0.76761561]
[1766611607263,0.9503,2948.3,2947.7,0.03392475]
[1766611607464,0.5,2948.2,2947.7,0.03392475]
[1766611607787,0.9503,2948.1,2947.6,0.0339259]
[1766611608385,0.9503,2948.1,2947.6,3.42648317]
[1766611608589,0.9503,2948.1,2947.4,0.891]
[1766611608753,0.9503,2948.1,2947.4,0.19194043]
[1766611608958,0.9503,2948.1,2947.5,3.42660978]
[1766611610758,0.9503,2948.0,2947.5,3.42660978]
[1766611614901,0.9503,2948.0,2947.5,3.42760978]
[1766611621009,0.9503,2948.0,2947.5,6.82031546]
[1766611621190,0.9503,2948.0,2947.5,6.78638841]
[1766611621388,0.9503,2948.0,2947.6,3.42640263]
[1766611622780,0.9503,2948.0,2947.6,6.81899321]
[1766611623095,0.9503,2948.0,2947.6,6.78506731]
[1766611623296,0.9503,2948.0,2947.7,0.03392475]
[1766611623613,0.002,2948.5,2947.7,0.03392475]
[1766611623792,0.9549,2948.6,2948.0,4.80426211]
[1766611623996,0.9549,2948.6,2948.1,0.03392015]
[1766611624211,0.89,2949.0,2948.3,4.80426211]
[1766611624212,0.9529,2949.0,2948.3,4.80426211]
[1766611624409,0.9529,2949.0,2948.4,0.0339167]
[1766611624608,0.9529,2949.0,2948.2,0.9549]
[1766611624810,0.9549,2948.9,2948.4,3.39167005]
[1766611625181,0.9549,2948.9,2948.3,3.96767498]
[1766611625701,0.9549,2948.9,2948.4,0.0339167]
[1766611627210,0.9549,2948.9,2948.5,3.39155502]
[1766611627384,0.9549,2948.9,2948.6,0.0339144]
[1766611628111,0.9549,2948.9,2948.6,0.71562826]
[1766611628316,0.9539,2949.2,2948.6,0.71562826]
[1766611629395,0.9539,2949.2,2948.6,4.10705706]
[1766611630795,0.002,2948.9,2948.6,4.10705706]
[1766611633087,0.002,2948.9,2948.6,7.49849706]
[1766611633293,0.002,2948.9,2948.7,0.74994971]
[1766611633615,0.002,2948.9,2948.8,0.03391209]
[1766611633842,0.001,2949.2,2948.8,0.03391209]
[1766611634005,0.002,2949.7,2949.0,4.80426211]
[1766611634206,0.002,2949.7,2949.1,0.51433486]
[1766611634408,1.01789976,2950.2,2949.1,0.51433486]
[1766611634409,0.002,2951.0,2949.6,0.9424]
[1766611634596,0.002,2951.0,2950.1,4.80426211]
[1766611634597,0.9529,2950.9,2950.1,4.80426211]
[1766611634804,0.9529,2950.9,2950.2,0.033896]
[1766611634994,0.9529,2950.4,2949.9,1.01755796]
[1766611635204,0.9529,2950.4,2950.0,0.0338983]
[1766611635438,0.9529,2950.4,2949.8,0.9424]
[1766611635744,0.9529,2950.2,2949.9,0.03389945]